fUST/lending_fUST_20240727
["ID","MTS","AMOUNT","RATE_DAILY","PERIOD"]
[333274471,1722013840337,-916.07,0.00013698,2]
[333274472,1722013840347,-302.55066996,0.00013698,2]
[333274473,1722013840358,-500.0,0.00013698,2]
[333274474,1722013840367,-500.0,0.00013698,2]
[333274475,1722013840377,-500.0,0.00013698,2]
[333274476,1722013840386,-500.0,0.00013698,2]
[333274477,1722013840397,-268.45224502,0.00013698,2]
[333274478,1722013840406,-500.0,0.00013698,2]
[333274479,1722013840415,-500.0,0.00013698,2]
[333274480,1722013840425,-500.0,0.00013698,2]
[333274481,1722013840435,-500.0,0.00013698,2]
[333274482,1722013840444,-500.63549699,0.00013698,2]
[333274483,1722013840454,-508.95810535,0.00013698,2]
[333274484,1722013840464,-500.0,0.00013698,2]
[333274485,1722013840473,-500.0,0.00013698,2]
[333274486,1722013840482,-500.0,0.00013698,2]
[333274487,1722013840492,-500.0,0.00013698,2]
[333274488,1722013840501,-2441.69,0.00013698,2]
[333274489,1722013840510,-2441.69,0.00013698,2]
[333274490,1722013840520,-2441.69,0.00013698,2]
[333274491,1722013840529,-2441.69,0.00013698,2]
[333274492,1722013840538,-2441.69,0.00013698,2]
[333274493,1722013840548,-2441.69,0.00013698,2]
[333274495,1722013840557,-2441.69,0.00013698,2]
[333274497,1722013840567,-2441.69,0.00013698,2]
[333274498,1722013840579,-2441.69,0.00013698,2]
[333274499,1722013840588,-500.0,0.00013698,2]
[333274500,1722013840597,-2441.69,0.00013698,2]
[333274501,1722013840608,-2441.69,0.00013698,2]
[333274502,1722013840618,-2441.69,0.00013698,2]
[333274503,1722013840628,-2441.69,0.00013698,2]
[333274504,1722013840637,-500.0,0.00013698,2]
[333274505,1722013840650,-2441.69,0.00013698,2]
[333274506,1722013840661,-2441.69,0.00013698,2]
[333274508,1722013840671,-2441.69,0.00013698,2]
[333274510,1722013840680,-2441.69,0.00013698,2]
[333274512,1722013840689,-2441.69,0.00013698,2]
[333274514,1722013840698,-2441.69,0.00013698,2]
[333274516,1722013840708,-500.0,0.00013698,2]
[333274518,1722013840717,-2441.69,0.00013698,2]
[333274520,1722013840726,-2441.69,0.00013698,2]
[333274522,1722013840735,-2441.69,0.00013698,2]
[333274524,1722013840744,-2441.69,0.00013698,2]
[333274526,1722013840753,-2441.8062902,0.00013698,2]
[333274528,1722013840763,-810.16,0.00013698,2]
[333274530,1722013840775,-500.0,0.00013698,2]
[333274532,1722013840784,-500.0,0.00013698,2]
[333274534,1722013840794,-500.0,0.00013698,2]
[333274536,1722013840803,-500.0,0.00013698,2]
[333274538,1722013840813,-500.0,0.00013698,2]
[333274540,1722013840823,-500.0,0.00013698,2]
[333274542,1722013840833,-500.0,0.00013698,2]
[333274544,1722013840842,-500.0,0.00013698,2]
[333274546,1722013840852,-500.0,0.00013698,2]
[333274548,1722013840862,-500.0,0.00013698,2]
[333274550,1722013840872,-500.0,0.00013698,2]
[333274552,1722013840882,-506.23636502,0.00013698,2]
[333274554,1722013840891,-500.0,0.00013698,2]
[333274556,1722013840900,-524.65330085,0.00013698,2]
[333274558,1722013840911,-500.0,0.00013698,2]
[333274560,1722013840920,-810.76,0.00013698,2]
[333274561,1722013840930,-500.0,0.00013698,2]
[333274562,1722013840939,-500.0,0.00013698,2]
[333274563,1722013840948,-989.0,0.00013698,2]
[333274564,1722013840958,-497.17801363,0.00013698,2]
[333274565,1722013840967,-500.0,0.00013698,2]
[333274566,1722013840976,-502.14090317,0.00013698,2]
[333274567,1722013840985,-500.0,0.00013698,2]
[333274568,1722013840995,-506.78065138,0.00013698,2]
[333274569,1722013841004,-500.0,0.00013698,2]
[333274570,1722013841014,-500.0,0.00013698,2]
[333274571,1722013841024,-500.0,0.00013698,2]
[333274572,1722013841033,-500.0,0.00013698,2]
[333274573,1722013841043,-500.0,0.00013698,2]
[333274574,1722013841052,-500.0,0.00013698,2]
[333274575,1722013841062,-500.0,0.00013698,2]
[333274576,1722013841071,-500.0,0.00013698,2]
[333274577,1722013841080,-847.85,0.00013698,2]
[333274578,1722013841090,-500.0,0.00013698,2]
[333274579,1722013841099,-500.0,0.00013698,2]
[333274580,1722013841109,-500.0,0.00013698,2]
[333274582,1722013841119,-500.0,0.00013698,2]
[333274584,1722013841128,-500.0,0.00013698,2]
[333274585,1722013841137,-500.0,0.00013698,2]
[333274587,1722013841146,-500.0,0.00013698,2]
[333274589,1722013841157,-503.01048796,0.00013698,2]
[333274591,1722013841166,-1487.11,0.00013698,2]
[333274593,1722013841176,-500.0,0.00013698,2]
[333274596,1722013841185,-504.78094596,0.00013698,2]
[333274597,1722013841195,-500.0,0.00013698,2]
[333274600,1722013841204,-435.55488251,0.00013698,2]
[333274602,1722013841214,-500.0,0.00013698,2]
[333274603,1722013841224,-500.0,0.00013698,2]
[333274605,1722013841233,-504.61591989,0.00013698,2]
[333274608,1722013841242,-500.0,0.00013698,2]
[333274610,1722013841251,-500.0,0.00013698,2]
[333274612,1722013841261,-500.0,0.00013698,2]
[333274614,1722013841270,-500.0,0.00013698,2]
[333274616,1722013841280,-500.0,0.00013698,2]
[333274618,1722013841289,-502.45465813,0.00013698,2]
[333274620,1722013841299,-500.0,0.00013698,2]
[333274622,1722013841309,-500.0,0.00013698,2]
[333274624,1722013841319,-500.0,0.00013698,2]
[333274626,1722013841328,-500.0,0.00013698,2]
[333274628,1722013841338,-500.0,0.00013698,2]
[333274630,1722013841347,-500.0,0.00013698,2]
[333274632,1722013841357,-550.75,0.00013698,2]
[333274634,1722013841366,-512.64,0.00013698,2]
[333274636,1722013841378,-500.0,0.00013698,2]
[333274638,1722013841390,-500.0,0.00013698,2]
[333274640,1722013841401,-500.0,0.00013698,2]
[333274642,1722013841412,-500.0,0.00013698,2]
[333274644,1722013841423,-416.11006723,0.00013698,2]
[333274646,1722013841435,-500.0,0.00013698,2]
[333274649,1722013841448,-500.0,0.00013698,2]
[333274651,1722013841460,-2876.46722793,0.00013698,2]
[333274653,1722013841471,-500.0,0.00013698,2]
[333274655,1722013841481,-500.0,0.00013698,2]
[333274657,1722013841491,-531.48248053,0.00013698,2]
[333274659,1722013841501,-500.0,0.00013698,2]
[333274661,1722013841511,-500.0,0.00013698,2]
[333274663,1722013841521,-500.0,0.00013698,2]
[333274665,1722013841531,-500.0,0.00013698,2]
[333274667,1722013841540,-294.56022965,0.00013698,2]
[333274669,1722013841550,-500.98295585,0.00013698,2]
[333274671,1722013841559,-517.0852034,0.00013698,2]
[333274673,1722013841569,-500.0,0.00013698,2]
[333274675,1722013841582,-502.28363194,0.00013698,2]
[333274677,1722013841592,-500.0,0.00013698,2]
[333274679,1722013841602,-500.0,0.00013698,2]
[333274681,1722013841614,-500.0,0.00013698,2]
[333274694,1722013841766,-500.0,0.00013698,2]
[333274695,1722013841799,-500.0,0.00013698,2]
[333274696,1722013841810,-501.30856067,0.00013698,2]
[333274697,1722013841821,-500.0,0.00013698,2]
[333274698,1722013841832,-550.54050196,0.00013698,2]
[333274699,1722013841843,-500.0,0.00013698,2]
[333274700,1722013841857,-500.0,0.00013698,2]
[333274701,1722013841868,-500.0,0.00013698,2]
[333274702,1722013841878,-500.0,0.00013698,2]
[333274703,1722013841887,-500.0,0.00013698,2]
[333274704,1722013841897,-500.0,0.00013698,2]
[333274705,1722013841906,-500.0,0.00013698,2]
[333274706,1722013841916,-489.71425071,0.00013698,2]
[333274707,1722013841927,-505.47502758,0.00013698,2]
[333274708,1722013841937,-504.72,0.00013698,2]
[333274709,1722013841947,-502.26495527,0.00013698,2]
[333274710,1722013841958,-500.0,0.00013698,2]
[333274711,1722013841968,-504.00163031,0.00013698,2]
[333274712,1722013841978,-500.0,0.00013698,2]
[333274713,1722013841989,-502.76179262,0.00013698,2]
[333274714,1722013841999,-500.0,0.00013698,2]
[333274715,1722013842008,-500.0,0.00013698,2]
[333274716,1722013842020,-500.0,0.00013698,2]
[333274717,1722013842032,-500.0,0.00013698,2]
[333274718,1722013842042,-500.0,0.00013698,2]
[333274719,1722013842051,-500.0,0.00013698,2]
[333274720,1722013842062,-640.54637123,0.00013698,2]
[333274721,1722013842071,-500.0,0.00013698,2]
[333274722,1722013842081,-500.0,0.00013698,2]
[333274723,1722013842090,-1008.59,0.00013698,2]
[333274724,1722013842099,-1519.0,0.00013698,2]
[333274725,1722013842109,-500.0,0.00013698,2]
[333274726,1722013842119,-512.0384615,0.00013698,2]
[333274727,1722013842129,-5471.36,0.00013698,2]
[333274728,1722013842139,-1217.16,0.00013698,2]
[333274729,1722013842148,-500.0,0.00013698,2]
[333274730,1722013842157,-891.66,0.00013698,2]
[333274731,1722013842167,-505.60284264,0.00013698,2]
[333274732,1722013842176,-396.59936613,0.00013698,2]
[333274733,1722013842186,-500.0,0.00013698,2]
[333274734,1722013842196,-500.0,0.00013698,2]
[333274735,1722013842205,-500.0,0.00013698,2]
[333274736,1722013842215,-500.0,0.00013698,2]
[333274737,1722013842226,-500.0,0.00013698,2]
[333274738,1722013842236,-500.0,0.00013698,2]
[333274739,1722013842245,-803.9,0.00013698,2]
[333274740,1722013842255,-500.0,0.00013698,2]
[333274741,1722013842266,-500.0,0.00013698,2]
[333274742,1722013842275,-500.0,0.00013698,2]
[333274743,1722013842284,-500.0,0.00013698,2]
[333274744,1722013842294,-719.02,0.00013698,2]
[333274745,1722013842303,-500.0,0.00013698,2]
[333274746,1722013842312,-500.0,0.00013698,2]
[333274747,1722013842322,-500.0,0.00013698,2]
[333274748,1722013842332,-503.8757368,0.00013698,2]
[333274749,1722013842341,-510.65281105,0.00013698,2]
[333274750,1722013842350,-500.0,0.00013698,2]
[333274751,1722013842360,-500.0,0.00013698,2]
[333274752,1722013842369,-500.0,0.00013698,2]
[333274753,1722013842380,-500.0,0.00013698,2]
[333274754,1722013842389,-500.0,0.00013698,2]
[333274755,1722013842399,-611.84,0.00013698,2]
[333274756,1722013842408,-500.0,0.00013698,2]
[333274757,1722013842418,-500.0,0.00013698,2]
[333274758,1722013842428,-696.33,0.00013698,2]
[333274759,1722013842438,-4988.99,0.00013698,2]
[333274760,1722013842448,-500.0,0.00013698,2]
[333274761,1722013842458,-500.0,0.00013698,2]
[333274762,1722013842468,-500.0,0.00013698,2]
[333274763,1722013842477,-500.0,0.00013698,2]
[333274764,1722013842488,-509.45587838,0.00013698,2]
[333274765,1722013842497,-500.0,0.00013698,2]
[333274766,1722013842507,-500.0,0.00013698,2]
[333274767,1722013842518,-519.25,0.00013698,2]
[333274768,1722013842528,-500.0,0.00013698,2]
[333274769,1722013842537,-500.0,0.00013698,2]
[333274770,1722013842547,-1876.22,0.00013698,2]
[333274771,1722013842556,-1724.63,0.00013698,2]
[333274772,1722013842565,-500.0,0.00013698,2]
[333274773,1722013842575,-500.0,0.00013698,2]
[333274774,1722013842589,-500.0,0.00013698,2]
[333274775,1722013842598,-500.0,0.00013698,2]
[333274776,1722013842608,-500.0,0.00013698,2]
[333274777,1722013842618,-500.0,0.00013698,2]
[333274778,1722013842628,-1646.68,0.00013698,2]
[333274779,1722013842637,-631.08,0.00013698,2]
[333274780,1722013842646,-500.0,0.00013698,2]
[333274781,1722013842657,-500.0,0.00013698,2]
[333274782,1722013842668,-1041.76,0.00013698,2]
[333274783,1722013842679,-501.53796063,0.00013698,2]
[333274784,1722013842690,-500.0,0.00013698,2]
[333274785,1722013842701,-757.57,0.00013698,2]
[333274786,1722013842712,-500.0,0.00013698,2]
[333274787,1722013842723,-507.03,0.00013698,2]
[333274788,1722013842734,-500.0,0.00013698,2]
[333274789,1722013842744,-500.0,0.00013698,2]
[333274790,1722013842754,-500.0,0.00013698,2]
[333274791,1722013842764,-3569.74,0.00013698,2]
[333274792,1722013842773,-500.0,0.00013698,2]
[333274793,1722013842782,-500.0,0.00013698,2]
[333274794,1722013842792,-3040.98,0.00013698,2]
[333274795,1722013842802,-500.0,0.00013698,2]
[333274796,1722013842812,-509.82,0.00013698,2]
[333274797,1722013842825,-500.0,0.00013698,2]
[333274798,1722013842835,-500.0,0.00013698,2]
[333274799,1722013842847,-500.0,0.00013698,2]
[333274800,1722013842857,-500.0,0.00013698,2]
[333274801,1722013842867,-698.58,0.00013698,2]
[333274802,1722013842878,-896.92,0.00013698,2]
[333274803,1722013842888,-500.0,0.00013698,2]
[333274804,1722013842899,-1446.14,0.00013698,2]
[333274805,1722013842910,-558.32,0.00013698,2]
[333274806,1722013842920,-500.0,0.00013698,2]
[333274807,1722013842932,-763.15,0.00013698,2]
[333274808,1722013842943,-500.0,0.00013698,2]
[333274809,1722013842953,-522.36028457,0.00013698,2]
[333274810,1722013842963,-500.0,0.00013698,2]
[333274811,1722013842973,-642.72,0.00013698,2]
[333274812,1722013842984,-393.76072345,0.00013698,2]
[333274813,1722013842994,-500.0,0.00013698,2]
[333274814,1722013843004,-500.0,0.00013698,2]
[333274815,1722013843014,-562.6930076,0.00013698,2]
[333274816,1722013843024,-500.0,0.00013698,2]
[333274817,1722013843036,-500.0,0.00013698,2]
[333274818,1722013843046,-820.9,0.00013698,2]
[333274819,1722013843055,-500.0,0.00013698,2]
[333274820,1722013843065,-500.0,0.00013698,2]
[333274821,1722013843074,-509.40211668,0.00013698,2]
[333274822,1722013843084,-500.0,0.00013698,2]
[333274823,1722013843094,-815.3,0.00013698,2]
[333274824,1722013843104,-500.0,0.00013698,2]
[333274825,1722013843115,-630.61875871,0.00013698,2]
[333274826,1722013843124,-1466.16,0.00013698,2]
[333274827,1722013843134,-505.83,0.00013698,2]
[333274829,1722013843144,-500.0,0.00013698,2]
[333274831,1722013843153,-513.00394085,0.00013698,2]
[333274832,1722013843162,-500.0,0.00013698,2]
[333274833,1722013843172,-505.39149835,0.00013698,2]
[333274834,1722013843181,-500.0,0.00013698,2]
[333274835,1722013843191,-3067.07,0.00013698,2]
[333274836,1722013843200,-506.44,0.00013698,2]
[333274837,1722013843209,-3067.07,0.00013698,2]
[333274838,1722013843219,-500.0,0.00013698,2]
[333274839,1722013843229,-3067.07,0.00013698,2]
[333274840,1722013843238,-3067.07,0.00013698,2]
[333274841,1722013843248,-3067.07,0.00013698,2]
[333274842,1722013843257,-3067.07,0.00013698,2]
[333274843,1722013843266,-3067.07,0.00013698,2]
[333274844,1722013843276,-500.0,0.00013698,2]
[333274846,1722013843285,-3067.07,0.00013698,2]
[333274848,1722013843295,-3067.07,0.00013698,2]
[333274850,1722013843304,-500.0,0.00013698,2]
[333274851,1722013843314,-3067.07,0.00013698,2]
[333274852,1722013843324,-3067.07,0.00013698,2]
[333274853,1722013843334,-3067.07,0.00013698,2]
[333274854,1722013843343,-500.0,0.00013698,2]
[333274855,1722013843352,-3067.07,0.00013698,2]
[333274856,1722013843363,-3067.07,0.00013698,2]
[333274857,1722013843372,-500.0,0.00013698,2]
[333274858,1722013843381,-500.0,0.00013698,2]
[333274859,1722013843390,-507.10437537,0.00013698,2]
[333274860,1722013843400,-500.0,0.00013698,2]
[333274861,1722013843409,-500.0,0.00013698,2]
[333274863,1722013843418,-500.0,0.00013698,2]
[333274864,1722013843427,-1757.92,0.00013698,2]
[333274865,1722013843438,-434.6287768,0.00013698,2]
[333274866,1722013843447,-500.0,0.00013698,2]
[333274867,1722013843456,-500.0,0.00013698,2]
[333274868,1722013843466,-500.0,0.00013698,2]
[333274870,1722013843476,-500.0,0.00013698,2]
[333274872,1722013843485,-622.23,0.00013698,2]
[333274873,1722013843495,-502.77452337,0.00013698,2]
[333274874,1722013843504,-500.0,0.00013698,2]
[333274875,1722013843513,-500.0,0.00013698,2]
[333274876,1722013843522,-1877.8,0.00013698,2]
[333274877,1722013843531,-882.9,0.00013698,2]
[333274878,1722013843541,-500.0,0.00013698,2]
[333274879,1722013843550,-500.0,0.00013698,2]
[333274880,1722013843559,-500.0,0.00013698,2]
[333274881,1722013843568,-592.86738694,0.00013698,2]
[333274882,1722013843579,-501.10551533,0.00013698,2]
[333274884,1722013843590,-500.0,0.00013698,2]
[333274885,1722013843599,-323.97300061,0.00013698,2]
[333274886,1722013843610,-500.0,0.00013698,2]
[333274887,1722013843619,-254.5393313,0.00013698,2]
[333274888,1722013843628,-500.0,0.00013698,2]
[333274889,1722013843638,-585.78539414,0.00013698,2]
[333274891,1722013843648,-500.0,0.00013698,2]
[333274893,1722013843660,-500.0,0.00013698,2]
[333274895,1722013843671,-500.0,0.00013698,2]
[333274897,1722013843682,-500.0,0.00013698,2]
[333274899,1722013843694,-500.0,0.00013698,2]
[333274900,1722013843705,-500.0,0.00013698,2]
[333274901,1722013843717,-394.76486303,0.00013698,2]
[333274902,1722013843727,-500.0,0.00013698,2]
[333274903,1722013843738,-500.0,0.00013698,2]
[333274904,1722013843748,-500.0,0.00013698,2]
[333274905,1722013843758,-500.0,0.00013698,2]
[333274906,1722013843767,-500.0,0.00013698,2]
[333274907,1722013843777,-378.41947162,0.00013698,2]
[333274908,1722013843787,-500.0,0.00013698,2]
[333274909,1722013843797,-280.52941493,0.00013698,2]
[333274910,1722013843807,-500.0,0.00013698,2]
[333274911,1722013843817,-500.0,0.00013698,2]
[333274912,1722013843826,-401.95116072,0.00013698,2]
[333274913,1722013843836,-500.0,0.00013698,2]
[333274914,1722013843846,-500.0,0.00013698,2]
[333274915,1722013843856,-500.0,0.00013698,2]
[333274918,1722013843866,-500.0,0.00013698,2]
[333274920,1722013843876,-500.0,0.00013698,2]
[333274922,1722013843884,-500.0,0.00013698,2]
[333274924,1722013843894,-208.81288163,0.00013698,2]
[333274926,1722013843904,-500.0,0.00013698,2]
[333274928,1722013843913,-500.0,0.00013698,2]
[333274929,1722013843922,-500.0,0.00013698,2]
[333274930,1722013843931,-1409.0,0.00013772,2]
[333274931,1722013843943,-200.0,0.00013872,2]
[333274932,1722013843953,-160.0,0.00013958,4]
[333274933,1722013843963,-3067.07,0.0001396,2]
[333274934,1722013843973,-61827.1391465,0.00013961,2]
[333274935,1722013843983,-3067.07,0.00013961,2]
[333274936,1722013843993,-3067.07,0.00013961,2]
[333274937,1722013844003,-960.188475,0.00013962,2]
[333274938,1722013844013,-960.188475,0.00013962,2]
[333274939,1722013844023,-151.0,0.00013962,2]
[333274940,1722013844033,-211.71623,0.00013962,2]
[333274941,1722013844043,-211.71623,0.00013962,2]
[333274942,1722013844053,-151.0,0.00013962,2]
[333274943,1722013844062,-151.0,0.00013962,2]
[333274944,1722013844073,-151.0,0.00013962,2]
[333274945,1722013844082,-248.28987,0.00013962,2]
[333274946,1722013844092,-151.0,0.00013962,2]
[333274947,1722013844103,-151.0,0.00013962,2]
[333274948,1722013844116,-500.0,0.00013971,2]
[333274949,1722013844127,-500.0,0.00013971,2]
[333274950,1722013844139,-500.0,0.00013971,2]
[333274951,1722013844148,-500.0,0.00013971,2]
[333274952,1722013844157,-500.0,0.00013971,2]
[333274953,1722013844166,-500.0,0.00013971,2]
[333274954,1722013844175,-500.0,0.00013971,2]
[333274955,1722013844184,-500.0,0.00013971,2]
[333274956,1722013844194,-500.0,0.00013971,2]
[333274957,1722013844203,-151.0,0.00013971,2]
[333274958,1722013844212,-801.343558,0.00013971,2]
[333274959,1722013844223,-291.583367,0.00013971,2]
[333274960,1722013844233,-801.343558,0.00013971,2]
[333274961,1722013844242,-624.209607,0.00013971,2]
[333274962,1722013844252,-624.209607,0.00013971,2]
[333274963,1722013844265,-151.0,0.00013971,2]
[333274964,1722013844274,-3067.07,0.00013971,2]
[333274965,1722013844285,-3067.07,0.00013971,2]
[333274966,1722013844297,-3067.07,0.00013971,2]
[333274967,1722013844307,-3067.07,0.00013971,2]
[333274968,1722013844319,-3067.07,0.00013971,2]
[333274969,1722013844331,-3067.07,0.00013971,2]
[333274970,1722013844341,-3067.17025527,0.00013971,2]
[333274971,1722013844353,-500.0,0.00013972,2]
[333274972,1722013844363,-504.354886,0.00013972,2]
[333274973,1722013844374,-507.14043006,0.00013972,2]
[333274974,1722013844387,-513.41327555,0.00013972,2]
[333274975,1722013844397,-500.0,0.00013972,2]
[333274976,1722013844408,-216.23443795,0.00013972,2]
[333274977,1722013844420,-501.11110698,0.00013972,2]
[333274978,1722013844430,-500.0,0.00013972,2]
[333274979,1722013844442,-500.0,0.00013972,2]
[333274980,1722013844453,-515.77249068,0.00013972,2]
[333274981,1722013844464,-500.0,0.00013972,2]
[333274982,1722013844475,-500.0,0.00013972,2]
[333274983,1722013844486,-500.0,0.00013972,2]
[333274984,1722013844496,-500.0,0.00013972,2]
[333274985,1722013844508,-507.96421758,0.00013972,2]
[333274986,1722013844519,-500.0,0.00013972,2]
[333274987,1722013844528,-770.17,0.00013972,2]
[333274988,1722013844538,-500.0,0.00013972,2]
[333274989,1722013844548,-500.0,0.00013972,2]
[333274990,1722013844559,-483.78754246,0.00013972,2]
[333274991,1722013844571,-500.0,0.00013972,2]
[333274992,1722013844588,-500.0,0.00013972,2]
[333274993,1722013844598,-612.43,0.00013972,2]
[333274994,1722013844607,-500.0,0.00013972,2]
[333274995,1722013844619,-500.0,0.00013972,2]
[333274996,1722013844630,-500.0,0.00013972,2]
[333274997,1722013844639,-921.29,0.00013972,2]
[333274998,1722013844649,-265.789588,0.00013972,2]
[333274999,1722013844665,-501.8,0.00013972,2]
[333275000,1722013844674,-500.0,0.00013972,2]
[333275001,1722013844687,-500.0,0.00013972,2]
[333275002,1722013844699,-736.52,0.00013972,2]
[333275003,1722013844711,-573.32,0.00013972,2]
[333275004,1722013844722,-500.0,0.00013972,2]
[333275005,1722013844732,-500.0,0.00013972,2]
[333275006,1722013844743,-711.57,0.00013972,2]
[333275007,1722013844754,-500.0,0.00013972,2]
[333275008,1722013844765,-500.0,0.00013972,2]
[333275009,1722013844776,-500.0,0.00013972,2]
[333275010,1722013844786,-500.0,0.00013972,2]
[333275011,1722013844798,-500.0,0.00013972,2]
[333275012,1722013844808,-500.0,0.00013972,2]
[333275013,1722013844821,-500.0,0.00013972,2]
[333275014,1722013844833,-500.0,0.00013972,2]
[333275015,1722013844843,-500.0,0.00013972,2]
[333275016,1722013844854,-500.0,0.00013972,2]
[333275017,1722013844864,-500.0,0.00013972,2]
[333275018,1722013844874,-500.0,0.00013972,2]
[333275019,1722013844883,-500.0,0.00013972,2]
[333275020,1722013844892,-500.0,0.00013972,2]
[333275021,1722013844902,-500.0,0.00013972,2]
[333275022,1722013844911,-500.0,0.00013972,2]
[333275023,1722013844921,-500.0,0.00013972,2]
[333275024,1722013844930,-500.0,0.00013972,2]
[333275025,1722013844940,-428.81608943,0.00013972,2]
[333275026,1722013844949,-636.02,0.00013972,2]
[333275027,1722013844959,-506.34635955,0.00013972,2]
[333275028,1722013844968,-500.0,0.00013972,2]
[333275029,1722013844979,-500.0,0.00013972,2]
[333275030,1722013844989,-500.0,0.00013972,2]
[333275031,1722013844999,-645.35,0.00013972,2]
[333275032,1722013845011,-500.0,0.00013972,2]
[333275033,1722013845023,-500.0,0.00013972,2]
[333275034,1722013845034,-699.82,0.00013972,2]
[333275035,1722013845044,-916.07,0.00013972,2]
[333275036,1722013845053,-500.0,0.00013972,2]
[333275037,1722013845063,-500.0,0.00013972,2]
[333275038,1722013845073,-502.6434046,0.00013972,2]
[333275039,1722013845083,-588.29253368,0.00013972,2]
[333275040,1722013845093,-151.0,0.00013972,2]
[333275041,1722013845102,-506.45385332,0.00013972,2]
[333275042,1722013845112,-500.0,0.00013972,2]
[333275043,1722013845122,-383.143264,0.00013972,2]
[333275044,1722013845132,-383.143264,0.00013972,2]
[333275045,1722013845141,-3.54546519,0.00013972,2]
[333275046,1722013845626,-500.0,0.00013698,2]
[333275047,1722013845636,-500.0,0.00013698,2]
[333275048,1722013845645,-496.45453481,0.00013972,2]
[333275049,1722013845656,-500.0,0.00013972,2]
[333275050,1722013845665,-500.0,0.00013972,2]
[333275051,1722013845675,-502.56395237,0.00013972,2]
[333275052,1722013845686,-810.16,0.00013972,2]
[333275053,1722013845696,-500.0,0.00013972,2]
[333275054,1722013845707,-500.0,0.00013972,2]
[333275055,1722013845718,-510.24467786,0.00013972,2]
[333275056,1722013845728,-500.0,0.00013972,2]
[333275057,1722013845739,-500.0,0.00013972,2]
[333275058,1722013845752,-500.0,0.00013972,2]
[333275059,1722013845762,-322.8742339,0.00013972,2]
[333275060,1722013845773,-501.29,0.00013972,2]
[333275061,1722013845784,-500.0,0.00013972,2]
[333275062,1722013845796,-518.31413586,0.00013972,2]
[333275063,1722013845807,-810.76,0.00013972,2]
[333275064,1722013845819,-500.0,0.00013972,2]
[333275065,1722013845831,-989.0,0.00013972,2]
[333275066,1722013845842,-500.0,0.00013972,2]
[333275067,1722013845853,-500.0,0.00013972,2]
[333275068,1722013845864,-500.0,0.00013972,2]
[333275069,1722013845874,-539.82,0.00013972,2]
[333275070,1722013845884,-500.0,0.00013972,2]
[333275071,1722013845893,-847.85,0.00013972,2]
[333275072,1722013845905,-502.64021438,0.00013972,2]
[333275073,1722013845915,-1487.11,0.00013972,2]
[333275074,1722013845926,-184.80927451,0.00013972,2]
[333275075,1722013845935,-482.560045,0.00013972,2]
[333275076,1722013845946,-500.0,0.00013972,2]
[333275077,1722013845956,-482.560045,0.00013972,2]
[333275078,1722013845967,-500.0,0.00013972,2]
[333275079,1722013845977,-500.0,0.00013972,2]
[333275080,1722013845988,-502.36529503,0.00013972,2]
[333275081,1722013845998,-510.89486563,0.00013972,2]
[333275082,1722013846010,-500.0,0.00013972,2]
[333275083,1722013846021,-500.0,0.00013972,2]